bitfinex-derivatives/quotes_BNBF0:USTF0_20241230
["timestamp","ask_amount","ask_price","bid_price","bid_amount"]
[1735525027496,0.28607801,699.11,697.23,1.06999689]
[1735525029504,0.28607801,699.11,697.21,1.06999689]
[1735525030699,0.28607801,699.11,697.23,1.06999689]
[1735525031907,0.28607801,699.11,697.55,1.06999689]
[1735525032806,0.28607801,699.11,697.62,1.06999689]
[1735525033709,0.28607801,699.11,697.74,1.06999689]
[1735525034609,0.28607801,699.11,697.94,1.06999689]
[1735525035913,0.28607801,699.11,697.92,1.06999689]
[1735525036510,0.28607801,699.11,697.71,1.06999689]
[1735525037513,0.28607801,699.11,697.7,1.06999689]
[1735525038515,0.26353507,699.1,697.58,0.28670546]
[1735525039218,0.28607801,699.11,697.58,0.28670546]
[1735525039916,0.26350738,699.1,697.58,0.28670546]
[1735525040216,0.28609029,699.08,697.58,0.28670546]
[1735525041516,0.28609029,699.08,697.66,1.0714399]
[1735525042817,0.28609029,699.08,697.85,1.0714399]
[1735525043920,0.28609029,699.08,697.87,1.0714399]
[1735525044716,0.28609029,699.08,697.85,1.0714399]
[1735525045916,0.28609029,699.08,697.87,1.0714399]
[1735525047019,0.28609029,699.08,697.86,1.0714399]
[1735525048321,0.28609029,699.08,697.88,1.0714399]
[1735525049121,0.28609029,699.08,697.85,1.0714399]
[1735525050218,0.28609029,699.08,697.93,1.0714399]
[1735525051417,0.28609029,699.08,697.94,1.0714399]
[1735525052621,0.28609029,699.08,698.01,1.0714399]
[1735525053723,0.28609029,699.08,697.95,1.0714399]
[1735525054818,0.28609029,699.08,698.03,1.0714399]
[1735525056123,0.28609029,699.08,697.98,1.0714399]
[1735525057223,0.28609029,699.08,697.97,1.0714399]
[1735525058121,0.28609029,699.08,697.94,1.0714399]
[1735525058926,0.28609029,699.08,697.91,0.2865699]
[1735525060221,0.28609029,699.08,697.91,1.3580098]
[1735525060423,0.28609029,699.08,697.91,3.19219609]
[1735525060624,0.28609029,699.08,697.92,2.83267978]
[1735525060923,0.28609029,699.08,697.93,1.83418629]
[1735525061826,0.28609029,699.08,697.91,0.2865699]
[1735525063426,0.28609029,699.08,697.91,3.77758395]
[1735525063626,0.28609029,699.08,697.92,2.83602789]
[1735525063828,0.28609029,699.08,697.93,3.49101405]
[1735525064226,0.28609029,699.08,697.94,2.83602789]
[1735525064430,0.28609029,699.08,697.95,4.56245395]
[1735525064632,0.28609029,699.08,697.96,6.32704194]
[1735525064827,0.28609029,699.08,697.97,3.49101405]
[1735525065025,0.28609029,699.08,697.98,2.83602789]
[1735525065326,0.28609029,699.08,697.99,3.49101405]
[1735525065531,0.28609029,699.08,698.03,1.0714399]
[1735525066233,0.28609029,699.08,698.02,7.39848184]
[1735525066531,0.28609029,699.08,698.03,3.49101405]
[1735525066732,0.28609029,699.08,698.03,4.67021418]
[1735525067028,0.28609029,699.08,698.04,1.83418629]
[1735525067233,0.28609029,699.08,697.96,2.83602789]
[1735525067635,0.28609029,699.08,697.95,1.0714399]
[1735525068029,0.28609029,699.08,697.91,0.2865699]
[1735525071231,0.28609029,699.08,697.95,1.0714399]
[1735525072235,0.28609029,699.08,697.98,1.0714399]
[1735525073530,0.28609029,699.08,697.96,3.49198407]
[1735525073531,0.28609029,699.08,697.97,3.49198407]
[1735525073730,0.28609029,699.08,697.98,2.83579255]
[1735525074036,0.28609029,699.08,697.99,3.49198407]
[1735525074334,0.28609029,699.08,698.08,1.0714399]
[1735525075637,0.28609029,699.08,698.09,1.0714399]
[1735525076335,0.28609029,699.08,698.09,4.56342397]
[1735525076530,0.28609029,699.08,698.1,3.49198407]
[1735525076731,0.28609029,699.08,698.12,1.0714399]
[1735525077637,1.06255104,699.76,698.12,4.55595229]
[1735525077834,0.28582044,699.74,698.13,4.66740398]
[1735525078038,0.28582044,699.74,698.14,3.48362626]
[1735525078336,0.28582044,699.74,698.15,2.83579255]
[1735525078541,0.28582044,699.74,698.16,1.83161143]
[1735525078734,0.28582044,699.74,698.17,0.28646318]
[1735525084339,0.26325981,699.73,698.17,0.28646318]
[1735525084645,0.2858327,699.71,698.17,0.28646318]
[1735525084945,0.26330681,699.7,698.17,0.28646318]
[1735525085139,0.28584495,699.68,698.17,0.28646318]
[1735525085344,0.26330681,699.67,698.17,0.28646318]
[1735525085546,0.28585721,699.65,698.17,0.28646318]
[1735525085746,0.26330681,699.64,698.17,0.28646318]
[1735525085941,0.26334427,699.63,698.17,0.28646318]
[1735525086140,0.26334427,699.64,698.17,0.28646318]
[1735525086446,0.54921374,699.62,698.17,0.28646318]
[1735525086643,0.26334427,699.61,698.17,0.28646318]
[1735525086846,0.28588173,699.59,698.17,0.28646318]
[1735525087046,0.26334427,699.58,698.17,0.28646318]
[1735525087247,0.28589399,699.56,698.17,0.28646318]
[1735525087441,0.26334427,699.55,698.17,0.28646318]
[1735525087647,0.28590625,699.53,698.17,0.28646318]
[1735525087846,0.26334427,699.52,698.17,0.28646318]
[1735525088347,0.26337217,699.51,698.17,0.28646318]
[1735525088545,0.26337217,699.51,697.91,2.11455403]
[1735525088743,0.2859226,699.49,697.91,0.2865699]
[1735525088946,0.26337217,699.48,697.91,0.2865699]
[1735525089147,0.28593486,699.46,697.91,0.2865699]
[1735525089348,0.26337217,699.45,697.91,0.2865699]
[1735525089548,0.28594712,699.43,697.91,0.2865699]
[1735525089748,0.26337217,699.42,697.91,0.2865699]
[1735525090745,0.28594712,699.43,697.91,0.2865699]
[1735525091048,0.26341267,699.42,697.91,0.2865699]
[1735525092047,0.28595939,699.4,697.91,0.2865699]
[1735525092249,0.26341267,699.39,697.91,0.2865699]
[1735525093148,0.28597166,699.37,697.91,0.2865699]
[1735525093349,0.2634452,699.36,697.91,0.2865699]
[1735525093543,0.28598392,699.34,697.91,0.2865699]
[1735525093747,0.2634452,699.33,697.91,0.2865699]
[1735525094049,0.28599619,699.31,697.91,0.2865699]
[1735525094243,0.2634452,699.3,697.91,0.2865699]
[1735525094447,0.28600846,699.28,697.91,0.2865699]
[1735525094646,0.2634452,699.27,697.91,0.2865699]
[1735525094949,0.28602073,699.25,697.91,0.2865699]
[1735525095150,0.2634452,699.24,697.91,0.2865699]
[1735525095349,0.286033,699.22,697.91,0.2865699]
[1735525095649,0.26344326,699.21,697.91,0.2865699]
[1735525095849,0.28604118,699.2,697.91,0.2865699]
[1735525096048,0.26344326,699.19,697.91,0.2865699]
[1735525096248,0.28605346,699.17,697.91,0.2865699]
[1735525097746,0.26347035,699.16,697.91,0.2865699]
[1735525098249,0.28605346,699.17,697.91,0.2865699]
[1735525098444,0.26347919,699.16,697.91,0.2865699]
[1735525098649,0.28606573,699.14,697.91,0.2865699]
[1735525099347,0.26349027,699.13,697.91,0.2865699]
[1735525099648,0.28607801,699.11,697.91,0.2865699]
[1735525101750,0.26356452,699.1,697.91,0.2865699]
[1735525101952,0.28609029,699.08,697.91,0.2865699]
[1735525102453,0.2635637,699.07,697.91,0.2865699]
[1735525102849,0.28610256,699.05,697.91,0.2865699]
[1735525103053,0.26358446,699.04,697.91,0.2865699]
[1735525103355,0.28611484,699.02,697.91,0.2865699]
[1735525103653,0.26358446,699.01,697.91,0.2865699]
[1735525103856,0.28612712,698.99,697.91,0.2865699]
[1735525104249,0.26359166,698.98,697.91,0.2865699]
[1735525104450,0.2861394,698.96,697.91,0.2865699]
[1735525104656,0.26359166,698.95,697.91,0.2865699]
[1735525104855,0.28615168,698.93,697.91,0.2865699]
[1735525105054,0.26359166,698.92,697.91,0.2865699]
[1735525105248,0.28616397,698.9,697.91,0.2865699]
[1735525106550,0.263614,698.89,697.91,0.2865699]
[1735525106749,0.28617625,698.87,697.91,0.2865699]
[1735525106954,0.263614,698.86,697.91,0.2865699]
[1735525107254,0.28618854,698.84,697.91,0.2865699]
[1735525107455,0.263614,698.83,697.91,0.2865699]
[1735525107857,0.28620082,698.81,697.91,0.2865699]
[1735525108052,0.26362963,698.8,697.91,0.2865699]
[1735525108257,0.28621311,698.78,697.91,0.2865699]
[1735525108758,0.26361804,698.77,697.91,0.2865699]
[1735525109059,0.2862213,698.76,697.91,0.2865699]
[1735525110251,0.26361912,698.75,697.91,0.2865699]
[1735525110451,0.28622949,698.74,697.91,0.2865699]
[1735525125472,0.26360158,698.73,697.91,0.2865699]
[1735525127566,0.28622949,698.74,697.91,0.2865699]
[1735525127774,0.26366479,698.73,697.91,0.2865699]
[1735525129766,0.28622949,698.74,697.91,0.2865699]
[1735525129968,0.26368326,698.73,697.91,0.2865699]
[1735525130172,0.26368717,698.73,697.91,0.2865699]
[1735525130372,1.05417514,698.69,697.91,0.2865699]
[1735525130571,0.26368717,698.68,697.91,0.2865699]
[1735525131476,1.05417514,698.67,697.91,0.2865699]
[1735525131677,0.26368717,698.66,697.91,0.2865699]
[1735525132477,1.31786231,698.66,697.91,0.2865699]
[1735525132776,0.26369109,698.65,697.91,0.2865699]
[1735525133572,1.05417514,698.6,697.91,0.2865699]
[1735525133880,0.26369109,698.59,697.91,0.2865699]
[1735525135880,1.05417514,698.58,697.91,0.2865699]
[1735525136074,0.26369109,698.57,697.91,0.2865699]
[1735525136782,1.05417514,698.55,697.91,0.2865699]
[1735525136977,0.26369109,698.54,697.91,0.2865699]
[1735525137574,0.26370711,698.53,697.91,0.2865699]
[1735525137778,0.26370711,698.52,697.91,0.2865699]
[1735525137978,1.05417514,698.54,697.91,0.2865699]
[1735525137979,0.26370711,698.51,697.91,0.2865699]
[1735525138181,0.26370711,698.5,697.91,0.2865699]
[1735525138376,0.26370711,698.49,697.91,0.2865699]
[1735525138579,1.05417514,698.54,697.91,0.2865699]
[1735525138886,1.31786584,698.53,697.91,0.2865699]
[1735525139176,0.2636907,698.52,697.91,0.2865699]
[1735525140081,1.05417514,698.55,697.91,0.2865699]
[1735525140082,0.26371746,698.51,697.91,0.2865699]
[1735525140282,0.26371746,698.5,697.91,0.2865699]
[1735525140582,0.26370969,698.49,697.91,0.2865699]
[1735525140883,1.05417514,698.58,697.91,0.2865699]
[1735525141081,0.26371107,698.57,697.91,0.2865699]
[1735525141783,1.05417514,698.54,697.91,0.2865699]
[1735525142077,0.26369711,698.53,697.91,0.2865699]
[1735525142875,0.26369711,698.52,697.91,0.2865699]
[1735525143079,0.26369711,698.51,697.91,0.2865699]
[1735525143379,0.26369711,698.5,697.91,0.2865699]
[1735525143580,0.26369711,698.49,697.91,0.2865699]
[1735525143780,0.26369711,698.48,697.91,0.2865699]
[1735525143981,0.26369711,698.47,697.91,0.2865699]
[1735525144176,0.26369711,698.46,697.91,0.2865699]
[1735525144381,1.05417514,698.58,697.91,0.2865699]
[1735525144577,0.26371267,698.57,697.91,0.2865699]
[1735525146185,0.26371267,698.56,697.91,0.2865699]
[1735525146387,0.26371267,698.55,697.91,0.2865699]
[1735525146682,1.05417514,698.6,697.91,0.2865699]
[1735525146883,0.26373033,698.59,697.91,0.2865699]
[1735525147786,0.26373033,698.58,697.91,0.2865699]
[1735525148083,0.26373033,698.57,697.91,0.2865699]
[1735525148279,0.26373033,698.56,697.91,0.2865699]
[1735525148483,0.26373033,698.55,697.91,0.2865699]
[1735525148784,0.26373033,698.54,697.91,0.2865699]
[1735525148980,0.26373033,698.53,697.91,0.2865699]
[1735525149182,0.26373033,698.52,697.91,0.2865699]
[1735525149379,0.28622949,698.74,697.91,0.2865699]
[1735525149380,0.26373033,698.51,697.91,0.2865699]
[1735525149585,0.26373033,698.5,697.91,0.2865699]
[1735525149883,0.26373033,698.49,697.91,0.2865699]
[1735525150084,0.26373033,698.48,697.91,0.2865699]
[1735525150286,0.26373033,698.62,697.91,0.2865699]
[1735525150479,0.26373033,698.61,697.91,0.2865699]
[1735525150679,0.26373033,698.6,697.91,0.2865699]
[1735525150879,0.26373033,698.59,697.91,0.2865699]
[1735525151083,0.26373033,698.58,697.91,0.2865699]
[1735525151286,0.26373033,698.57,697.91,0.2865699]
[1735525151586,1.05417514,698.63,697.91,0.2865699]
[1735525151786,0.26373869,698.62,697.91,0.2865699]
[1735525154082,1.05417514,698.63,697.91,0.2865699]
[1735525154284,0.26373859,698.62,697.91,0.2865699]
[1735525155686,0.26373859,698.61,697.91,0.2865699]
[1735525155886,0.26373859,698.6,697.91,0.2865699]
[1735525156085,0.26373859,698.59,697.91,0.2865699]
[1735525156287,0.26373859,698.58,697.91,0.2865699]
[1735525156487,0.26373859,698.57,697.91,0.2865699]
[1735525156689,0.26374383,698.58,697.91,0.2865699]
[1735525156889,0.26374383,698.57,697.91,0.2865699]
[1735525157185,1.31791897,698.56,697.91,0.2865699]
[1735525157491,0.26374383,698.55,697.91,0.2865699]
[1735525157990,1.31791897,698.55,697.91,0.2865699]
[1735525158193,0.26374383,698.54,697.91,0.2865699]
[1735525158885,1.05417514,698.53,697.91,0.2865699]
[1735525159190,0.26373741,698.52,697.91,0.2865699]
[1735525159593,1.31791255,698.52,697.91,0.2865699]
[1735525159791,0.26373741,698.51,697.91,0.2865699]
[1735525160089,1.05417514,698.52,697.91,0.2865699]
[1735525160591,1.05417514,698.48,697.91,0.2865699]
[1735525160986,0.26378988,698.47,697.91,0.2865699]
[1735525161484,0.2638026,698.46,697.91,0.2865699]
[1735525161689,0.2638026,698.45,697.91,0.2865699]
[1735525161884,1.05417514,698.42,697.91,0.2865699]
[1735525162087,0.2638026,698.41,697.91,0.2865699]
[1735525162986,1.05417514,698.37,697.91,0.2865699]
[1735525163192,0.2638026,698.36,697.91,0.2865699]
[1735525163997,0.26381287,698.35,697.91,0.2865699]
[1735525164191,1.05417514,698.38,697.91,0.2865699]
[1735525164387,0.26380396,698.37,697.91,0.2865699]
[1735525164891,1.05417514,698.38,697.91,0.2865699]
[1735525165092,0.26379729,698.37,697.91,0.2865699]
[1735525165591,0.26379729,698.36,697.91,0.2865699]
[1735525165793,0.26379729,698.35,696.81,1.06350525]
[1735525165988,0.26379729,698.34,696.81,1.06350525]
[1735525166189,1.05417514,698.42,696.81,1.06350525]
[1735525166190,0.26379729,698.33,696.81,1.06350525]
[1735525166388,0.28622949,698.74,696.75,1.06350525]
[1735525166389,0.26382212,698.32,696.75,1.06350525]
[1735525166593,0.26382212,698.31,696.75,1.06350525]
[1735525166786,1.05417514,698.39,696.75,1.06350525]
[1735525166992,0.26382381,698.38,696.75,1.06350525]
[1735525167592,0.26382381,698.38,696.12,2.17132323]
[1735525167593,0.26382381,698.38,696.72,1.06350525]
[1735525168792,1.05417514,698.36,696.64,1.06350525]
[1735525168992,0.26382381,698.35,696.64,1.06350525]
[1735525169790,0.26382381,698.35,688.32,4.40828974]
[1735525169791,1.05417514,698.32,696.67,1.06350525]
[1735525169997,0.26382381,698.31,696.67,1.06350525]
[1735525171096,1.05417514,698.21,696.49,1.06350525]
[1735525171294,0.26390656,698.2,696.49,1.06350525]
[1735525172490,1.05417514,698.18,696.16,1.06350525]
[1735525173190,1.05417514,698.38,696.07,1.06350525]
[1735525173695,0.2639012,698.37,696.07,1.06350525]
[1735525174190,0.2639012,698.37,696.15,1.06350525]
[1735525174395,0.2639012,698.36,696.15,1.06350525]
[1735525174597,0.2639012,698.35,696.15,1.06350525]
[1735525174795,0.2639012,698.34,696.15,1.06350525]
[1735525174995,0.2639012,698.33,696.15,1.06350525]
[1735525175190,0.2639012,698.32,696.15,1.06350525]
[1735525175396,1.05417514,698.17,696.33,1.06350525]
[1735525175596,0.2639012,698.16,696.33,1.06350525]
[1735525175997,0.26393479,698.15,696.33,1.06350525]
[1735525176297,0.26393479,698.16,696.33,1.06350525]
[1735525176489,0.26393479,698.15,696.29,1.06350525]
[1735525176689,0.26393479,698.14,696.29,1.06350525]
[1735525176890,0.26393479,698.13,696.29,1.06350525]
[1735525177093,0.26393479,698.12,696.29,1.06350525]
[1735525177293,1.05417514,698.2,696.29,1.06350525]
[1735525177598,0.26390173,698.19,696.19,1.83072481]
[1735525177798,0.26390173,698.18,696.14,3.48022899]
[1735525178096,1.05417514,698.41,696.14,3.48022899]
[1735525178097,0.26390173,698.17,696.14,6.30278356]
[1735525178396,0.61371828,698.78,696.14,6.30278356]
[1735525178397,0.26389255,698.16,696.15,6.30278356]
[1735525178598,0.26389255,698.15,696.16,6.30278356]
[1735525178796,1.05417514,698.44,696.17,3.48022899]
[1735525179094,0.26389613,698.43,696.18,2.82255457]
[1735525179397,0.26389613,698.43,696.17,1.83072481]
[1735525179398,0.26389613,698.43,696.19,1.83072481]
[1735525179598,0.26389613,698.42,696.18,6.30243379]
[1735525179798,0.26389613,698.41,696.19,1.83072481]
[1735525179998,0.26389613,698.4,696.19,4.65327938]
[1735525180299,0.26389613,698.39,696.2,1.83072481]
[1735525180498,0.26389613,698.38,696.19,1.83072481]
[1735525180699,0.26389613,698.37,696.19,1.83072481]
[1735525180894,0.26390177,698.36,696.19,1.83072481]
[1735525181097,0.26390177,698.35,696.18,1.83072481]
[1735525181300,0.26390177,698.34,696.18,1.83072481]
[1735525181503,0.26390177,698.33,696.18,1.83072481]
[1735525181799,0.26390177,698.32,696.18,1.83072481]
[1735525181996,0.26390177,698.31,696.17,3.4799438]
[1735525182198,0.26390177,698.3,696.17,3.4799438]
[1735525182393,0.26390177,698.29,696.17,3.4799438]
[1735525182598,0.26390177,698.28,696.18,2.82255457]
[1735525182797,0.26390177,698.27,696.19,3.4799438]
[1735525183000,0.26390177,698.26,696.2,1.82840936]
[1735525183194,0.26390177,698.26,696.15,1.06350525]
[1735525183195,1.05417514,698.45,696.16,3.47763572]
[1735525183400,0.26384631,698.44,696.17,2.82286109]
[1735525183600,0.26384631,698.44,696.18,4.54114097]
[1735525183799,0.26384631,698.43,696.19,3.47763572]
[1735525184002,0.26384631,698.42,696.2,2.82286109]
[1735525184197,0.26384631,698.41,696.21,3.47763572]
[1735525184401,0.26384631,698.4,696.22,2.82286109]
[1735525184595,0.26384631,698.39,696.23,3.47763572]
[1735525184798,0.61417499,698.98,696.32,1.06350525]
[1735525184799,0.26384631,698.38,696.32,1.06350525]
[1735525184994,0.26384631,698.37,696.32,1.06350525]
[1735525185198,0.26384631,698.36,696.32,1.06350525]
[1735525185395,1.05417514,698.7,696.32,1.06350525]
[1735525185396,0.26384631,698.35,696.32,1.06350525]
[1735525185600,1.05417514,698.7,696.32,1.06350525]
[1735525185800,1.05417514,698.54,696.54,1.06350525]
[1735525186302,0.26381259,698.53,696.54,1.06350525]
[1735525187303,1.31798773,698.53,696.59,1.06350525]
[1735525187503,0.26381259,698.52,696.59,1.06350525]
[1735525188203,1.05417514,698.52,696.56,1.06350525]
[1735525188405,0.26382464,698.51,696.56,1.06350525]
[1735525189208,1.05417514,698.5,696.61,1.06350525]
[1735525189403,0.26382464,698.49,696.61,1.06350525]
[1735525189604,1.05417514,698.5,696.61,1.06350525]
[1735525189809,0.28633604,698.48,696.61,1.06350525]
[1735525190309,0.26381999,698.47,696.65,1.06350525]
[1735525191215,0.26381999,698.47,696.66,1.06350525]
[1735525192315,0.26381999,698.47,696.28,2.17132323]
[1735525192316,1.05417514,698.39,696.54,1.06350525]
[1735525192510,0.26381999,698.38,696.54,1.06350525]
[1735525193412,0.28638524,698.36,696.54,1.06350525]
[1735525193717,0.26385469,698.35,696.64,1.06350525]
[1735525195117,1.05417514,698.34,696.69,1.06350525]
[1735525195316,0.26385469,698.33,696.69,1.06350525]
[1735525195512,0.28640575,698.31,696.69,1.06350525]
[1735525195712,0.26385469,698.3,696.69,1.06350525]
[1735525195916,1.05417514,698.28,696.75,1.06350525]
[1735525196113,0.26385469,698.27,696.75,1.06350525]
[1735525197020,0.26385469,698.27,696.77,1.06350525]
[1735525197218,0.26385469,698.26,696.77,1.06350525]
[1735525197416,0.26385469,698.25,696.77,1.06350525]
[1735525197616,0.26385469,698.24,696.77,1.06350525]
[1735525197817,0.26385469,698.23,696.71,1.06350525]
[1735525198020,0.26385469,698.22,696.71,1.06350525]
[1735525198217,0.28645087,698.2,696.71,1.06350525]
[1735525198614,0.26384045,698.19,696.71,1.06350525]
[1735525198819,0.26384045,698.19,696.74,1.06350525]
[1735525199616,0.28645087,698.2,696.74,1.06350525]
[1735525199920,0.28646318,698.17,696.72,1.06350525]
[1735525201119,0.28646318,698.17,696.7,1.06350525]
[1735525202217,0.28646318,698.17,696.67,1.06350525]
[1735525202917,0.26383948,698.16,696.67,1.06350525]
[1735525203120,0.28646318,698.17,696.67,1.06350525]
[1735525203516,0.28646318,698.17,696.56,1.06350525]
[1735525203517,0.28646318,698.17,696.87,1.06350525]
[1735525204423,0.28646318,698.17,696.6,1.06350525]
[1735525205424,0.28646318,698.17,696.71,1.06350525]
[1735525206418,0.28646318,698.17,696.59,1.06350525]
[1735525206622,0.28646318,698.17,696.58,1.06350525]
[1735525207725,0.28646318,698.17,696.62,1.06350525]
[1735525208825,0.28646318,698.17,696.7,1.06350525]
[1735525209921,0.28646318,698.17,696.86,1.06350525]
[1735525210921,0.28646318,698.17,697.08,1.06350525]
[1735525211725,0.28646318,698.17,697.11,1.06350525]
[1735525212725,0.28646318,698.17,696.93,1.06350525]
[1735525213624,0.28646318,698.17,696.79,1.06350525]
[1735525214424,0.28646318,698.17,696.87,1.06350525]
[1735525215831,0.28646318,698.17,696.92,1.06350525]
[1735525216925,0.28646318,698.17,696.99,1.06350525]
[1735525217727,0.28646318,698.17,697.0,1.06350525]
[1735525219129,0.28646318,698.17,697.14,1.06350525]
[1735525221125,0.28646318,698.17,697.06,1.06350525]
[1735525222531,0.28646318,698.17,696.78,1.06350525]
[1735525225031,0.28646318,698.17,696.73,1.06350525]
[1735525227636,0.28646318,698.17,696.74,1.06350525]
[1735525228631,0.28646318,698.17,696.73,1.06350525]
[1735525231333,0.28646318,698.17,696.72,1.06350525]
[1735525233739,0.28646318,698.17,696.48,1.06350525]
[1735525233939,0.26388643,698.16,696.48,1.06350525]
[1735525234735,0.26388643,698.16,696.41,1.06350525]
[1735525235536,0.26388643,698.16,696.36,1.06350525]
[1735525235738,0.28647549,698.14,696.36,1.06350525]
[1735525235941,0.26388643,698.13,696.36,1.06350525]
[1735525236342,0.26392176,698.12,696.36,1.06350525]
[1735525236533,0.26392176,698.11,696.36,1.06350525]
[1735525236740,0.26392176,698.1,696.47,1.06350525]
[1735525237040,1.05417514,698.31,696.47,1.06350525]
[1735525237041,0.28650011,698.08,696.47,1.06350525]
[1735525238043,0.28650011,698.08,688.83,4.41357136]
[1735525238044,0.28650011,698.08,696.28,1.06350525]
[1735525239343,0.28650011,698.08,696.21,1.06350525]
[1735525240236,0.28650011,698.08,696.09,1.06350525]
[1735525240237,0.28650011,698.08,696.17,1.06350525]
[1735525240641,0.26394084,698.07,696.17,1.06350525]
[1735525240940,0.28651242,698.05,696.17,1.06350525]
[1735525241238,0.28651242,698.05,696.12,1.06350525]
[1735525242244,0.28651242,698.05,696.12,7.3855665]
[1735525242438,0.28651242,698.05,696.13,3.4898764]
[1735525242639,0.28651242,698.05,696.14,2.83218485]
[1735525242944,0.28651242,698.05,696.15,3.4898764]
[1735525243347,0.28651242,698.05,696.16,2.83218485]
[1735525243545,0.28651242,698.05,696.17,1.83489423]
[1735525244039,0.28651242,698.05,696.13,3.48900461]
[1735525244343,0.28651242,698.05,696.14,2.83218485]
[1735525244746,0.28651242,698.05,696.01,1.06350525]
[1735525244940,0.26394754,698.04,696.01,1.06350525]
[1735525245140,0.28655758,697.94,696.01,1.06350525]
[1735525245647,0.28655758,697.94,695.81,6.31972356]
[1735525245648,0.28655758,697.94,695.97,1.06350525]
[1735525246645,0.28655758,697.94,695.99,1.06350525]
[1735525247745,0.28655758,697.94,695.97,1.06350525]
[1735525248247,0.26395884,697.93,695.97,1.06350525]
[1735525248450,0.2865699,697.91,695.97,1.06350525]
[1735525248642,0.26397779,697.9,695.95,6.31972356]
[1735525248847,0.28658222,697.88,695.96,3.48753871]
[1735525249043,0.26397779,697.87,695.97,2.83218485]
[1735525249244,0.28659454,697.85,695.98,3.48753871]
[1735525249449,0.26397779,697.84,695.98,3.48753871]
[1735525249651,0.28660686,697.82,695.99,2.83218485]
[1735525249851,0.26397779,697.81,696.0,3.48753871]
[1735525250048,0.28660686,697.82,696.0,3.48753871]
[1735525250248,0.28660686,697.82,696.01,2.83218485]
[1735525250444,0.2639941,697.8,696.02,3.48753871]
[1735525250648,0.2639941,697.79,696.03,2.83218485]
[1735525250847,0.55061739,697.78,696.04,3.48753871]
[1735525251045,0.28662329,697.78,696.04,3.48753871]
[1735525251354,0.2640015,697.77,696.05,2.83218485]
[1735525251548,0.2640015,697.77,696.06,3.48753871]
[1735525252148,0.2640015,697.77,696.07,2.83218485]
[1735525252348,0.2640015,697.77,696.08,3.48753871]
[1735525252749,0.28662329,697.78,696.09,2.83218485]
[1735525252950,0.26401139,697.77,696.09,2.83218485]
[1735525253150,0.28662329,697.78,696.09,2.83218485]
[1735525253354,0.28662329,697.78,696.1,1.82998594]
[1735525253551,0.28662329,697.78,696.03,3.47986285]
[1735525254153,0.28662329,697.78,696.04,2.83218485]
[1735525254357,0.28662329,697.78,696.05,3.47986285]
[1735525254948,0.28662329,697.78,696.06,2.83218485]
[1735525255148,0.28662329,697.78,696.07,3.47986285]
[1735525255452,0.26400843,697.77,696.08,2.83218485]
[1735525255652,0.26400843,697.77,696.09,1.82998594]
[1735525255852,0.26400843,697.77,695.94,3.47898811]
[1735525256055,0.26401579,697.76,695.94,3.47898811]
[1735525256254,0.26401579,697.77,695.95,2.83218485]
[1735525256455,0.26401579,697.76,695.96,3.47898811]
[1735525256650,0.26401579,697.75,695.96,3.47898811]
[1735525256851,0.26401579,697.74,695.97,2.83218485]
[1735525257051,0.28662329,697.78,695.98,3.47898811]
[1735525257353,0.28662329,697.78,695.99,2.83218485]
[1735525257551,0.26400776,697.77,696.0,3.47898811]
[1735525257748,0.28663561,697.75,696.01,2.83218485]
[1735525257950,0.28663561,697.75,696.02,3.47898811]
[1735525258249,0.28663561,697.75,696.03,2.83218485]
[1735525258449,0.28663561,697.75,696.04,3.47898811]
[1735525259149,0.28663561,697.75,696.05,2.83218485]
[1735525259452,0.28663561,697.75,696.06,3.47898811]
[1735525259652,0.28663561,697.75,696.07,2.83218485]
[1735525259853,0.28663561,697.75,696.08,1.82998594]
[1735525260548,0.28663561,697.75,695.97,3.47716831]
[1735525260752,0.28663561,697.75,695.98,3.47716831]
[1735525260956,0.28663561,697.75,695.99,3.47716831]
[1735525261347,0.28663561,697.75,695.79,2.83218485]
[1735525261348,0.28663561,697.75,696.0,3.47716831]
[1735525261548,0.28663561,697.75,696.01,6.30935316]
[1735525261753,0.28663561,697.75,696.02,6.30935316]
[1735525261953,0.28663561,697.75,696.03,3.47716831]
[1735525262153,0.28663561,697.75,696.04,2.83218485]
[1735525262458,0.28663561,697.75,696.05,3.47716831]
[1735525262754,0.28663561,697.75,696.06,2.83218485]
[1735525262955,0.28663561,697.75,696.07,3.47716831]
[1735525263353,0.28663561,697.75,696.08,2.83218485]
[1735525263549,0.28663561,697.75,696.09,3.47716831]
[1735525263949,0.28663561,697.75,696.1,2.83218485]
[1735525264154,0.28663561,697.75,696.11,3.47716831]
[1735525264347,0.28663561,697.75,696.11,1.82998594]
[1735525264550,0.28663561,697.75,696.11,3.47604631]
[1735525264753,0.26399416,697.74,696.02,3.47604631]
[1735525264958,0.28664793,697.72,696.03,6.30826856]
[1735525265157,0.2640008,697.71,696.04,3.47608371]
[1735525265356,0.28666026,697.69,696.04,6.30826856]
[1735525265560,0.28666026,697.69,696.05,6.30826856]
[1735525265859,0.28666026,697.69,696.08,1.06350525]
[1735525266456,0.28666026,697.69,696.17,1.06350525]
[1735525267156,0.28666026,697.69,696.25,1.06350525]
[1735525268657,0.28666026,697.69,696.32,1.06350525]
[1735525269858,0.28666026,697.69,696.17,1.06350525]
[1735525271359,0.28666026,697.69,696.08,1.06350525]
[1735525272557,0.28666026,697.69,696.04,1.06350525]
[1735525273759,0.28666026,697.69,696.08,1.06350525]